fUSD/lending_fUSD_20250811
["ID","MTS","AMOUNT","RATE_DAILY","PERIOD"]
[378608440,1754925037190,-446.24,0.00016438,2]
[378608441,1754925037199,-306.52513922,0.00016438,2]
[378608442,1754925037209,-1463.58,0.00016438,2]
[378608443,1754925037218,-400.0,0.00016438,2]
[378608444,1754925037227,-400.0,0.00016438,2]
[378608445,1754925037237,-400.0,0.00016438,2]
[378608446,1754925037247,-400.0,0.00016438,2]
[378608447,1754925037256,-400.0,0.00016438,2]
[378608448,1754925037266,-400.0,0.00016438,2]
[378608449,1754925037275,-400.0,0.00016438,2]
[378608450,1754925037285,-400.0,0.00016438,2]
[378608451,1754925037295,-400.0,0.00016438,2]
[378608452,1754925037304,-400.0,0.00016438,2]
[378608453,1754925037313,-400.0,0.00016438,2]
[378608454,1754925037323,-400.0,0.00016438,2]
[378608455,1754925037333,-400.0,0.00016438,2]
[378608456,1754925037343,-400.0,0.00016438,2]
[378608457,1754925037352,-400.0,0.00016438,2]
[378608458,1754925037362,-400.0,0.00016438,2]
[378608459,1754925037372,-306.56,0.00016438,2]
[378608460,1754925037382,-400.0,0.00016438,2]
[378608461,1754925037391,-400.0,0.00016438,2]
[378608462,1754925037401,-477.67,0.00016438,2]
[378608463,1754925037410,-400.0,0.00016438,2]
[378608464,1754925037420,-400.0,0.00016438,2]
[378608465,1754925037430,-306.78209008,0.00016438,2]
[378608466,1754925037478,-93.21790992,0.00016438,2]
[378608467,1754925037488,-400.0,0.00016438,2]
[378608468,1754925037498,-400.0,0.00016438,2]
[378608469,1754925037507,-939.6,0.00016438,2]
[378608470,1754925037518,-400.0,0.00016438,2]
[378608471,1754925037527,-400.0,0.00016438,2]
[378608472,1754925037537,-400.0,0.00016438,2]
[378608473,1754925037547,-400.0,0.00016438,2]
[378608474,1754925037556,-400.0,0.00016438,2]
[378608475,1754925037566,-400.0,0.00016438,2]
[378608476,1754925037576,-1093.52,0.00016438,2]
[378608477,1754925037586,-693.72,0.00016438,2]
[378608478,1754925037595,-349.94211008,0.00016438,2]
[378608479,1754925037607,-118.18788992,0.00016438,2]
[378608480,1754925037617,-400.0,0.00016438,2]
[378608481,1754925037627,-534.43,0.00016438,2]
[378608482,1754925037636,-624.43,0.00016438,2]
[378608483,1754925037645,-273.02206047,0.00016438,2]
[378608484,1754925037655,-400.0,0.00016438,2]
[378608485,1754925037665,-400.0,0.00016438,2]
[378608486,1754925037674,-400.0,0.00016438,2]
[378608487,1754925037687,-400.0,0.00016438,2]
[378608488,1754925037696,-400.0,0.00016438,2]
[378608489,1754925037707,-400.0,0.00016438,2]
[378608490,1754925037716,-598.46,0.00016438,2]
[378608491,1754925037726,-400.0,0.00016438,2]
[378608492,1754925037735,-400.0,0.00016438,2]
[378608493,1754925037744,-400.0,0.00016438,2]
[378608494,1754925037753,-400.0,0.00016438,2]
[378608495,1754925037763,-509.34,0.00016438,2]
[378608496,1754925037772,-400.0,0.00016438,2]
[378608497,1754925037782,-400.0,0.00016438,2]
[378608498,1754925037792,-400.0,0.00016438,2]
[378608499,1754925037801,-400.0,0.00016438,2]
[378608500,1754925037810,-1238.11,0.00016438,2]
[378608501,1754925037820,-968.33,0.00016438,2]
[378608502,1754925037830,-1000.0,0.00016438,2]
[378608503,1754925037840,-621.64503008,0.00016438,2]
[378608505,1754925038426,-849.55496992,0.00016438,2]
[378608506,1754925038437,-471.07,0.00016438,2]
[378608507,1754925038446,-400.0,0.00016438,2]
[378608508,1754925038455,-373.2,0.00016438,2]
[378608509,1754925038464,-20.75481382,0.00016438,2]
[378608538,1754925038960,-714.53518618,0.00016438,2]
[378608540,1754925038969,-462.7,0.00016438,2]
[378608542,1754925038978,-94.94233588,0.00016438,2]
[378608669,1754925040427,-305.05766412,0.00016438,2]
[378608671,1754925040438,-214.02233588,0.00016438,2]
[378608673,1754925040451,-185.97766412,0.00016438,2]
[378608675,1754925040460,-400.0,0.00016438,2]
[378608677,1754925040470,-400.0,0.00016438,2]
[378608679,1754925040479,-186.45252625,0.00016438,2]
[378608684,1754925040522,-273.54747375,0.00016438,2]
[378608686,1754925040531,-752.27,0.00016438,2]
[378608688,1754925040540,-169.63495931,0.00016438,2]
[378608691,1754925040557,-230.36504069,0.00016438,2]
[378608693,1754925040567,-923.59,0.00016438,2]
[378608695,1754925040577,-400.0,0.00016438,2]
[378608697,1754925040587,-400.0,0.00016438,2]
[378608699,1754925040596,-859.08,0.00016438,2]
[378608701,1754925040606,-400.0,0.00016438,2]
[378608703,1754925040616,-400.0,0.00016438,2]
[378608705,1754925040625,-449.35,0.00016438,2]
[378608707,1754925040635,-594.88,0.00016438,2]
[378608709,1754925040644,-415.47,0.00016438,2]
[378608711,1754925040654,-481.17,0.00016438,2]
[378608713,1754925040663,-400.0,0.00016438,2]
[378608715,1754925040672,-400.0,0.00016438,2]
[378608717,1754925040683,-1157.46,0.00016438,2]
[378608719,1754925040696,-400.0,0.00016438,2]
[378608721,1754925040706,-649.05,0.00016438,2]
[378608723,1754925040716,-400.0,0.00016438,2]
[378608725,1754925040726,-400.0,0.00016438,2]
[378608727,1754925040735,-434.55275069,0.00016438,2]
[378608729,1754925040744,-400.0,0.00016438,2]
[378608731,1754925040754,-453.09,0.00016438,2]
[378608733,1754925040764,-400.0,0.00016438,2]
[378608735,1754925040774,-400.0,0.00016438,2]
[378608737,1754925040783,-507.41,0.00016438,2]
[378608739,1754925040792,-75.53220862,0.00016438,2]
[378608741,1754925040805,-479.83779138,0.00016438,2]
[378608743,1754925040814,-490.68,0.00016438,2]
[378608745,1754925040824,-400.0,0.00016438,2]
[378608747,1754925040833,-521.13,0.00016438,2]
[378608749,1754925040843,-400.0,0.00016438,2]
[378608751,1754925040852,-400.0,0.00016438,2]
[378608753,1754925040861,-750.06,0.00016438,2]
[378608755,1754925040871,-400.0,0.00016438,2]
[378608757,1754925040880,-400.0,0.00016438,2]
[378608759,1754925040889,-81.35220862,0.00016438,2]
[378608761,1754925040902,-1725.44779138,0.00016438,2]
[378608763,1754925040911,-500.17767018,0.00016438,2]
[378608765,1754925040920,-100.83709804,0.00016438,2]
[378608769,1754925040950,-388.61290196,0.00016438,2]
[378608771,1754925040959,-400.0,0.00016438,2]
[378608773,1754925040968,-400.0,0.00016438,2]
[378608775,1754925040978,-400.0,0.00016438,2]
[378608777,1754925040987,-135.26461894,0.00016438,2]
[378608779,1754925041000,-264.73538106,0.00016438,2]
[378608781,1754925041012,-400.0,0.00016438,2]
[378608783,1754925041021,-400.0,0.00016438,2]
[378608785,1754925041031,-400.0,0.00016438,2]
[378608787,1754925041040,-400.0,0.00016438,2]
[378608789,1754925041050,-400.0,0.00016438,2]
[378608791,1754925041059,-514.18,0.00016438,2]
[378608793,1754925041068,-460.0,0.00016438,2]
[378608795,1754925041078,-400.0,0.00016438,2]
[378608797,1754925041087,-401.23353801,0.00016438,2]
[378608799,1754925041096,-400.0,0.00016438,2]
[378608801,1754925041106,-400.0,0.00016438,2]
[378608803,1754925041115,-579.92,0.00016438,2]
[378608805,1754925041124,-448.93,0.00016438,2]
[378608807,1754925041133,-511.6,0.00016438,2]
[378608809,1754925041143,-214.60974646,0.00016438,2]
[378608811,1754925041152,-400.0,0.00016438,2]
[378608813,1754925041162,-400.0,0.00016438,2]
[378608815,1754925041171,-401.27,0.00016438,2]
[378608817,1754925041181,-400.0,0.00016438,2]
[378608819,1754925041192,-516.81,0.00016438,2]
[378608821,1754925041201,-400.0,0.00016438,2]
[378608823,1754925041210,-400.0,0.00016438,2]
[378608824,1754925041219,-400.0,0.00016438,2]
[378608826,1754925041229,-400.0,0.00016438,2]
[378608829,1754925041238,-400.0,0.00016438,2]
[378608831,1754925041247,-402.50214616,0.00016438,2]
[378608833,1754925041256,-400.0,0.00016438,2]
[378608835,1754925041266,-400.0,0.00016438,2]
[378608836,1754925041275,-400.0,0.00016438,2]
[378608839,1754925041284,-403.81047275,0.00016438,2]
[378608841,1754925041294,-400.0,0.00016438,2]
[378608842,1754925041303,-400.0,0.00016438,2]
[378608845,1754925041313,-400.0,0.00016438,2]
[378608847,1754925041322,-425.94825554,0.00016438,2]
[378608849,1754925041332,-400.0,0.00016438,2]
[378608851,1754925041342,-400.0,0.00016438,2]
[378608852,1754925041351,-541.22,0.00016438,2]
[378608854,1754925041360,-828.24,0.00016438,2]
[378608856,1754925041370,-400.0,0.00016438,2]
[378608858,1754925041380,-400.0,0.00016438,2]
[378608860,1754925041389,-470.58,0.00016438,2]
[378608863,1754925041399,-400.0,0.00016438,2]
[378608865,1754925041409,-400.0,0.00016438,2]
[378608866,1754925041418,-400.0,0.00016438,2]
[378608868,1754925041427,-400.0,0.00016438,2]
[378608871,1754925041440,-523.44,0.00016438,2]
[378608873,1754925041449,-400.0,0.00016438,2]
[378608875,1754925041459,-425.81,0.00016438,2]
[378608877,1754925041468,-400.0,0.00016438,2]
[378608879,1754925041478,-400.0,0.00016438,2]
[378608880,1754925041487,-59.01499591,0.00016438,2]
[378608883,1754925041501,-343.96468628,0.00016438,2]
[378608885,1754925041511,-400.0,0.00016438,2]
[378608887,1754925041520,-400.0,0.00016438,2]
[378608889,1754925041530,-400.0,0.00016438,2]
[378608891,1754925041540,-465.03531372,0.00016438,2]
[378608929,1754925041895,-334.82468628,0.00016438,2]
[378608931,1754925041904,-400.0,0.00016438,2]
[378608933,1754925041914,-546.94,0.00016438,2]
[378608935,1754925041923,-400.0,0.00016438,2]
[378608937,1754925041934,-432.40350615,0.00016438,2]
[378608939,1754925041946,-400.0,0.00016438,2]
[378608941,1754925041956,-400.0,0.00016438,2]
[378608943,1754925041965,-909.64,0.00016438,2]
[378608945,1754925041975,-1143.35,0.00016438,2]
[378608947,1754925041984,-466.2,0.00016438,2]
[378608949,1754925041994,-400.0,0.00016438,2]
[378608951,1754925042005,-532.78,0.00016438,2]
[378608953,1754925042015,-400.0,0.00016438,2]
[378608955,1754925042024,-400.0,0.00016438,2]
[378608957,1754925042034,-673.8,0.00016438,2]
[378608959,1754925042043,-491.39,0.00016438,2]
[378608961,1754925042052,-400.0,0.00016438,2]
[378608963,1754925042062,-400.0,0.00016438,2]
[378608965,1754925042071,-402.84,0.00016438,2]
[378608967,1754925042081,-686.33,0.00016438,2]
[378608969,1754925042091,-427.36,0.00016438,2]
[378608971,1754925042100,-400.0,0.00016438,2]
[378608973,1754925042109,-264.14180757,0.00016438,2]
[378608978,1754925042142,-265.97819243,0.00016438,2]
[378608980,1754925042152,-400.0,0.00016438,2]
[378608982,1754925042161,-400.0,0.00016438,2]
[378608984,1754925042171,-400.0,0.00016438,2]
[378608986,1754925042182,-1172.63,0.00016438,2]
[378608988,1754925042192,-400.0,0.00016438,2]
[378608990,1754925042202,-500.0,0.00016438,2]
[378608992,1754925042212,-711.6,0.00016438,2]
[378608994,1754925042221,-400.0,0.00016438,2]
[378608996,1754925042231,-975.82,0.00016438,2]
[378608998,1754925042239,-489.29151957,0.00016438,2]
[378609197,1754925044316,-88.90848043,0.00016438,2]
[378609199,1754925044326,-402.64026207,0.00016438,2]
[378609201,1754925044335,-151.0,0.00016438,2]
[378609203,1754925044345,-400.0,0.00016438,2]
[378609205,1754925044354,-400.0,0.00016438,2]
[378609207,1754925044364,-661.28376587,0.00016438,2]
[378609210,1754925044376,-23.75623413,0.00016438,2]
[378609212,1754925044385,-400.0,0.00016438,2]
[378609214,1754925044395,-400.0,0.00016438,2]
[378609216,1754925044405,-549.77,0.00016438,2]
[378609218,1754925044413,-415.85059702,0.00016438,2]
[378609304,1754925045251,-6.69940298,0.00016438,2]
[378609306,1754925045260,-400.0,0.00016438,2]
[378609308,1754925045270,-400.0,0.00016438,2]
[378609310,1754925045279,-576.97,0.00016438,2]
[378609312,1754925045289,-768.83,0.00016438,2]
[378609314,1754925045298,-1438.78,0.00016438,2]
[378609315,1754925045307,-808.21,0.00016438,2]
[378609317,1754925045316,-401.16314882,0.00016438,2]
[378609319,1754925045325,-365.08807685,0.00016438,2]
[378609322,1754925045337,-195.04192315,0.00016438,2]
[378609324,1754925045346,-98.61893725,0.00016438,2]
[378609330,1754925045401,-301.38106275,0.00016438,2]
[378609332,1754925045411,-400.0,0.00016438,2]
[378609334,1754925045420,-404.0971144,0.00016438,2]
[378609336,1754925045429,-400.0,0.00016438,2]
[378609338,1754925045440,-160.06657506,0.00016438,2]
[378609341,1754925045455,-239.93342494,0.00016438,2]
[378609343,1754925045464,-400.0,0.00016438,2]
[378609345,1754925045474,-890.48,0.00016438,2]
[378609347,1754925045483,-783.53,0.00016438,2]
[378609349,1754925045492,-400.0,0.00016438,2]
[378609351,1754925045502,-400.0,0.00016438,2]
[378609353,1754925045511,-400.0,0.00016438,2]
[378609355,1754925045520,-400.0,0.00016438,2]
[378609357,1754925045530,-400.0,0.00016438,2]
[378609359,1754925045540,-400.0,0.00016438,2]
[378609361,1754925045549,-425.73,0.00016438,2]
[378609363,1754925045559,-400.0,0.00016438,2]
[378609365,1754925045569,-107.32657506,0.00016438,2]
[378609385,1754925045755,172.0,0.00011,2]
[378609400,1754925045893,168.0,0.0001218,2]
[378609409,1754925045973,165.0,0.0001337,2]
[378609420,1754925046069,161.0,0.0001455,2]
[378609433,1754925046189,158.0,0.0001573,2]
[378609495,1754925046828,-292.67342494,0.00016438,2]
[378609497,1754925046837,-188.36016394,0.00016438,2]
[378609499,1754925046847,-400.0,0.00016438,2]
[378609501,1754925046857,-400.0,0.00016438,2]
[378609503,1754925046867,-400.0,0.00016438,2]
[378609505,1754925046876,-400.0,0.00016438,2]
[378609507,1754925046886,-400.0,0.00016438,2]
[378609509,1754925046896,-400.0,0.00016438,2]
[378609511,1754925046905,-804.07,0.00016438,2]
[378609513,1754925046915,-400.0,0.00016438,2]
[378609516,1754925046925,-438.49641112,0.00016438,2]
[378609522,1754925046966,-296.16358888,0.00016438,2]
[378609524,1754925046975,-1270.21,0.00016438,2]
[378609526,1754925046984,-400.0,0.00016438,2]
[378609528,1754925046994,-691.79,0.00016438,2]
[378609530,1754925047006,-400.0,0.00016438,2]
[378609532,1754925047015,-400.0,0.00016438,2]
[378609534,1754925047024,-460.0,0.00016438,2]
[378609536,1754925047033,-461.51386515,0.00016438,2]
[378609538,1754925047043,-400.0,0.00016438,2]
[378609540,1754925047054,-400.0,0.00016438,2]
[378609542,1754925047063,-569.19,0.00016438,2]
[378609544,1754925047072,-400.0,0.00016438,2]
[378609546,1754925047083,-400.0,0.00016438,2]
[378609548,1754925047094,-400.0,0.00016438,2]
[378609550,1754925047103,-400.0,0.00016438,2]
[378609552,1754925047113,-495.51,0.00016438,2]
[378609554,1754925047122,-400.0,0.00016438,2]
[378609556,1754925047132,-400.0,0.00016438,2]
[378609558,1754925047141,-851.44,0.00016438,2]
[378609560,1754925047151,-407.31889651,0.00016438,2]
[378609562,1754925047162,-400.0,0.00016438,2]
[378609564,1754925047171,-464.78,0.00016438,2]
[378609566,1754925047181,-532.98,0.00016438,2]
[378609568,1754925047191,-400.0,0.00016438,2]
[378609570,1754925047201,-400.0,0.00016438,2]
[378609572,1754925047210,-400.0,0.00016438,2]
[378609574,1754925047220,-400.0,0.00016438,2]
[378609576,1754925047229,-400.0,0.00016438,2]
[378609578,1754925047238,-703.36,0.00016438,2]
[378609580,1754925047248,-385.44876916,0.00016438,2]
[378609582,1754925047258,-400.0,0.00016438,2]
[378609584,1754925047269,-787.07,0.00016438,2]
[378609586,1754925047279,-400.0,0.00016438,2]
[378609588,1754925047288,-594.45,0.00016438,2]
[378609590,1754925047298,-514.58,0.00016438,2]
[378609592,1754925047307,-400.0,0.00016438,2]
[378609594,1754925047317,-400.0,0.00016438,2]
[378609596,1754925047326,-517.68,0.00016438,2]
[378609598,1754925047335,-400.0,0.00016438,2]
[378609600,1754925047345,-1592.68,0.00016438,2]
[378609602,1754925047354,-420.94,0.00016438,2]
[378609604,1754925047364,-400.0,0.00016438,2]
[378609606,1754925047374,-417.51,0.00016438,2]
[378609608,1754925047383,-854.31,0.00016438,2]
[378609610,1754925047392,-446.47218463,0.00016438,2]
[378609612,1754925047401,-400.0,0.00016438,2]
[378609614,1754925047412,-480.8854769,0.00016438,2]
[378609616,1754925047421,-400.0,0.00016438,2]
[378609618,1754925047430,-400.0,0.00016438,2]
[378609621,1754925047439,-400.0,0.00016438,2]
[378609625,1754925047451,-509.14530143,0.00016438,2]
[378609627,1754925047460,-400.0,0.00016438,2]
[378609629,1754925047469,-1296.22,0.00016438,2]
[378609631,1754925047480,-400.0,0.00016438,2]
[378609633,1754925047489,-400.0,0.00016438,2]
[378609634,1754925047498,-400.0,0.00016438,2]
[378609636,1754925047507,-400.0,0.00016438,2]
[378609639,1754925047517,-400.0,0.00016438,2]
[378609640,1754925047527,-400.0,0.00016438,2]
[378609643,1754925047536,-429.38242764,0.00016438,2]
[378609645,1754925047546,-400.0,0.00016438,2]
[378609647,1754925047555,-400.0,0.00016438,2]
[378609648,1754925047564,-400.0,0.00016438,2]
[378609651,1754925047574,-400.0,0.00016438,2]
[378609652,1754925047583,-400.0,0.00016438,2]
[378609655,1754925047593,-400.0,0.00016438,2]
[378609656,1754925047602,-404.97,0.00016438,2]
[378609659,1754925047612,-400.0,0.00016438,2]
[378609660,1754925047621,-595.26,0.00016438,2]
[378609662,1754925047630,-400.0,0.00016438,2]
[378609664,1754925047639,-400.0,0.00016438,2]
[378609666,1754925047649,-608.34,0.00016438,2]
[378609668,1754925047659,-400.0,0.00016438,2]
[378609671,1754925047668,-460.83966707,0.00016438,2]
[378609672,1754925047678,-812.48,0.00016438,2]
[378609675,1754925047687,-400.0,0.00016438,2]
[378609676,1754925047698,-404.29,0.00016438,2]
[378609679,1754925047708,-400.0,0.00016438,2]
[378609680,1754925047718,-2237.25,0.00016438,2]
[378609683,1754925047729,-400.0,0.00016438,2]
[378609685,1754925047739,-400.0,0.00016438,2]
[378609687,1754925047748,-1373.01,0.00016438,2]
[378609689,1754925047762,-1189.6,0.00016438,2]
[378609691,1754925047772,-400.0,0.00016438,2]
[378609693,1754925047782,-400.0,0.00016438,2]
[378609695,1754925047792,-450.8,0.00016438,2]
[378609697,1754925047802,-856.06,0.00016438,2]
[378609699,1754925047811,-400.0,0.00016438,2]
[378609701,1754925047821,-488.47167552,0.00016438,2]
[378609703,1754925047831,-400.0,0.00016438,2]
[378609705,1754925047841,-400.0,0.00016438,2]
[378609707,1754925047852,-574.92,0.00016438,2]
[378609709,1754925047872,-400.0,0.00016438,2]
[378609711,1754925047891,-499.03,0.00016438,2]
[378609713,1754925047902,-498.27,0.00016438,2]
[378609715,1754925047911,-400.0,0.00016438,2]
[378609717,1754925047922,-400.0,0.00016438,2]
[378609719,1754925047931,-446.72,0.00016438,2]
[378609722,1754925047943,-517.43,0.00016438,2]
[378609723,1754925047953,-400.0,0.00016438,2]
[378609726,1754925047964,-826.67,0.00016438,2]
[378609727,1754925047974,-400.0,0.00016438,2]
[378609730,1754925047984,-729.68,0.00016438,2]
[378609732,1754925047994,-1084.95,0.00016438,2]
[378609734,1754925048004,-442.52,0.00016438,2]
[378609735,1754925048015,-400.0,0.00016438,2]
[378609737,1754925048025,-742.88,0.00016438,2]
[378609739,1754925048035,-400.0,0.00016438,2]
[378609741,1754925048046,-400.0,0.00016438,2]
[378609744,1754925048055,-400.0,0.00016438,2]
[378609745,1754925048065,-400.0,0.00016438,2]
[378609748,1754925048076,-468.71,0.00016438,2]
[378609750,1754925048087,-1763.55,0.00016438,2]
[378609751,1754925048098,-400.0,0.00016438,2]
[378609754,1754925048108,-663.31,0.00016438,2]
[378609756,1754925048119,-1339.37,0.00016438,2]
[378609758,1754925048129,-400.0,0.00016438,2]
[378609760,1754925048139,-518.47,0.00016438,2]
[378609762,1754925048148,-520.18,0.00016438,2]
[378609764,1754925048158,-400.0,0.00016438,2]
[378609766,1754925048168,-773.3,0.00016438,2]
[378609768,1754925048178,-400.0,0.00016438,2]
[378609770,1754925048189,-400.0,0.00016438,2]
[378609771,1754925048202,-400.0,0.00016438,2]
[378609774,1754925048212,-460.0,0.00016438,2]
[378609776,1754925048222,-400.0,0.00016438,2]
[378609777,1754925048231,-660.92,0.00016438,2]
[378609779,1754925048241,-637.57,0.00016438,2]
[378609781,1754925048251,-400.0,0.00016438,2]
[378609783,1754925048261,-400.0,0.00016438,2]
[378609786,1754925048270,-400.0,0.00016438,2]
[378609788,1754925048280,-582.08,0.00016438,2]
[378609789,1754925048290,-400.0,0.00016438,2]
[378609791,1754925048300,-605.78,0.00016438,2]
[378609793,1754925048310,-400.0,0.00016438,2]
[378609795,1754925048319,-400.0,0.00016438,2]
[378609797,1754925048328,-400.0,0.00016438,2]
[378609799,1754925048337,-1000.0,0.00016438,2]
[378609801,1754925048347,-400.0,0.00016438,2]
[378609804,1754925048358,-1300.62,0.00016438,2]
[378609805,1754925048367,-724.94,0.00016438,2]
[378609807,1754925048377,-400.03,0.00016438,2]
[378609810,1754925048387,-500.0,0.00016438,2]
[378609811,1754925048397,-400.0,0.00016438,2]
[378609813,1754925048407,-855.87,0.00016438,2]
[378609816,1754925048416,-500.0,0.00016438,2]
[378609818,1754925048426,-1386.55,0.00016438,2]
[378609820,1754925048435,-400.0,0.00016438,2]
[378609822,1754925048446,-400.0,0.00016438,2]
[378609824,1754925048456,-400.0,0.00016438,2]
[378609825,1754925048465,-668.56,0.00016438,2]
[378609827,1754925048475,-738.35,0.00016438,2]
[378609829,1754925048485,-400.0,0.00016438,2]
[378609831,1754925048494,-400.0,0.00016438,2]
[378609833,1754925048504,-598.36,0.00016438,2]
[378609836,1754925048514,-400.0,0.00016438,2]
[378609838,1754925048524,-1458.65,0.00016438,2]
[378609839,1754925048533,-4467.36,0.00016438,2]
[378609842,1754925048543,-400.0,0.00016438,2]
[378609843,1754925048552,-481.34947225,0.00016438,2]
[378609846,1754925048562,-400.0,0.00016438,2]
[378609848,1754925048571,-400.0,0.00016438,2]
[378609849,1754925048581,-400.0,0.00016438,2]
[378609851,1754925048590,-184.19400644,0.00016438,2]
[378609854,1754925048600,-400.0,0.00016438,2]
[378609856,1754925048609,-464.67,0.00016438,2]
[378609858,1754925048618,-3274.38,0.00016438,2]
[378609859,1754925048628,-400.0,0.00016438,2]
[378609861,1754925048638,-688.53,0.00016438,2]
[378609863,1754925048647,-2367.14,0.00016438,2]
[378609865,1754925048656,-797.65,0.00016438,2]
[378609867,1754925048666,-2370.88,0.00016438,2]
[378609869,1754925048676,-400.0,0.00016438,2]
[378609871,1754925048685,-400.0,0.00016438,2]
[378609873,1754925048695,-400.0,0.00016438,2]
[378609875,1754925048705,-1627.62,0.00016438,2]
[378609877,1754925048715,-645.84,0.00016438,2]
[378609879,1754925048726,-663.55,0.00016438,2]
[378609881,1754925048737,-1018.68,0.00016438,2]
[378609884,1754925048747,-400.0,0.00016438,2]
[378609886,1754925048756,-522.99,0.00016438,2]
[378609888,1754925048766,-400.0,0.00016438,2]
[378609889,1754925048775,-408.75260232,0.00016438,2]
[378609949,1754925049354,-114.23739768,0.00016438,2]
[378609951,1754925049364,-400.0,0.00016438,2]
[378609953,1754925049374,-355.08989639,0.00016438,2]
[378610814,1754925075913,517.0,0.00015332,2]
[378610815,1754925081458,295.0,0.00015952,2]
[378610816,1754925095481,1000.0,0.00015622,2]
[378610818,1754925185533,170.0,0.00015568,7]
[378610822,1754925216143,420.0,0.00024,120]
[378610825,1754925241747,250.0,0.00015525,2]
[378610831,1754925381358,166.97,0.00015487,2]
[378610836,1754925391058,31444.9,0.00015487,2]
[378610838,1754925396054,233.88,0.000156,2]
[378610873,1754925472400,297.58,0.000155,2]
[378610901,1754925576539,173.0,0.0001,2]
[378610902,1754925576971,169.0,0.0001118,2]
[378610903,1754925577457,166.0,0.0001237,2]
[378610904,1754925578093,162.0,0.0001355,2]
[378610905,1754925578776,159.0,0.0001473,2]
[378610906,1754925579214,311.0,0.0001592,2]
[378610907,1754925607342,185.06840512,0.00016,2]
[378610908,1754925618815,150.0,0.00015489,2]
[378610910,1754925695771,400.0,0.00024,120]
[378610914,1754925701426,698.59,0.00015501,2]
[378610915,1754925705781,508.0,0.00015362,2]
[378610916,1754925825142,166.0,0.00016,2]
[378610917,1754925828262,334.82,0.00013699,2]
[378610919,1754925845502,184.36,0.00016,2]
[378610920,1754925864304,166.0,0.00016,2]
[378610921,1754925876215,352.05501116,0.00015,5]
[378610924,1754925898336,157.94,0.00015507,2]
[378610925,1754925900554,10659.58658372,0.00015457,2]
[378610926,1754925900576,5443.92341628,0.00015457,2]
[378610928,1754926006509,1293.83,0.00015449,2]
[378610929,1754926020446,270.36,0.00015488,2]
[378610930,1754926024688,1200.0,0.000159,5]
[378610931,1754926055527,161.43,0.00015422,2]
[378610936,1754926061193,6630.45658372,0.00015488,2]
[378610937,1754926061219,15000.0,0.00015488,2]
[378610938,1754926061245,1461.95341628,0.00015488,2]
[378610939,1754926065518,508.0,0.000154,2]
[378610942,1754926107688,150.0,9e-05,2]
[378610943,1754926108057,150.0,0.0001018,2]
[378610944,1754926108795,150.0,0.0001137,2]
[378610945,1754926109190,150.0,0.0001255,2]
[378610946,1754926109579,150.0,0.0001373,2]
[378610947,1754926110029,271.0,0.0001492,2]